Cogmind - Beta 16.1 @@@ ROGUE MODE // 2026.02.22 @ 16:05:38 Player: Legion Result: Destroyed by DAS Turret with DAS Cannon Performance ------------- Evolutions (1) 500 Regions Visited (5) 1000 Robots Destroyed (43) 215 Value Destroyed (1103) 1103 Prototype IDs (24) 480 Alien Tech Used (0) 0 Bonus (300) 300 TOTAL SCORE: 3598 Bonus ------- Aligned with FarCom 300 Cogmind --------- Core Integrity 0/400 Matter 279/300 Energy 100/100 System Corruption 1% Temperature Cool (0) Movement Core (50) Location -9/Exiles Parts ------- > --- POWER (1) -------- (None) > --- PROPULSION (3) --- (None) > --- UTILITY (3) ------ (None) > --- WEAPON (2) ------- (None) > --- INVENTORY (5) ---- Supersonic Drone Bay (1/1) PSU Rigger Improved Light Cannon Field Lobotomy Kit (5) Peak State ------------ > --- POWER ------------ Heavy Ion Engine > --- PROPULSION ------- Aluminum Leg Aluminum Leg Aluminum Leg > --- UTILITY ---------- Scrap Suit Supersonic Drone Bay > --- WEAPON ----------- Small Laser Improved Light Cannon > --- INVENTORY -------- Aluminum Leg Aluminum Leg Improved Terrain Scanner Improved Light Cannon Field Lobotomy Kit [Rating: 26] Favorites ----------- Power Heavy Ion Engine Engine Heavy Ion Engine Propulsion Aluminum Leg Leg Aluminum Leg Utility Scrap Suit Device Scrap Suit Storage Small Storage Unit Protection Light Armor Plating Weapon Improved Light Cannon Energy Gun Small Laser Ballistic Gun Heavy Assault Rifle Ballistic Cannon Improved Light Cannon Special Weapon Plasma Cutter Special Melee Weapon Datajack Build | -11 -10 -10 -9 -9 -9 ------- Run | Yrd Mat Min Mat Min Exi Slots Evolved 2 | . . . 2 . . Power . | . . . . . . Propulsion 1 | . . . 1 . . Utility 1 | . . . 1 . . Weapon . | . . . . . . Parts Attached 26 | 6 8 1 3 5 3 Power 4 | 1 . . 3 . . Engine 4 | 1 . . 3 . . Core . | . . . . . . Reactor . | . . . . . . Propulsion 8 | 2 2 . . 4 . Treads . | . . . . . . Leg 8 | 2 2 . . 4 . Wheel . | . . . . . . Hover . | . . . . . . Flight . | . . . . . . Utility 7 | 1 2 1 . 1 2 Device 5 | . 1 1 . 1 2 Storage 1 | 1 . . . . . Processor . | . . . . . . Hackware . | . . . . . . Protection 1 | . 1 . . . . Artifact . | . . . . . . Weapon 7 | 2 4 . . . 1 Energy Gun 2 | 2 . . . . . Energy Cannon . | . . . . . . Ballistic Gun . | . . . . . . Ballistic Cannon 2 | . 2 . . . . Launcher . | . . . . . . Special Weapon 2 | . 1 . . . 1 Impact Weapon . | . . . . . . Slashing Weapon . | . . . . . . Piercing Weapon . | . . . . . . Special Melee Weapon 1 | . 1 . . . . Unidentified Prototypes 4 | . . . 1 . 3 Parts Lost 14 | . . . 1 5 8 Power 2 | . . . 1 . 1 Propulsion 5 | . . . . 2 3 Utility 3 | . . . . 1 2 Weapon 4 | . . . . 2 2 Highest Loss Streak 8 | . . . 1 2 8 To Critical Strikes . | . . . . . . Average Backups 3 | . 3 5 4 2 3 Power . | . . . . . . Propulsion . | . . 1 . 1 1 Utility . | . . . . . . Weapon 1 | . 2 2 4 1 1 Tool/Special . | . . . . . . Unused Backups 1 | . 1 . . . . Power . | . . . . . . Propulsion . | . . . . . . Utility . | . . . . . . Weapon 1 | . 1 . . . . Tool/Special . | . . . . . . Average Slot Usage (%) 89 | . 97 88 86 87 87 Engine 11 | . 14 14 10 11 10 Leg 31 | . 28 28 33 32 32 Device 18 | . 12 14 21 21 21 Storage 1 | . 4 . . . . Protection 2 | . 9 3 . . . Energy Gun 6 | . 1 . . 9 10 Ballistic Gun 2 | . . . 19 1 . Ballistic Cannon 13 | . 23 28 2 10 10 Peak Build Rating 26 | 6 9 15 19 21 26 Average Rating 16 | 4 8 13 18 19 20 On Entrance 11 | . 6 9 15 19 20 Avg Prop Armor Cover (%) . | . . . . . . Naked Turns . | . . . . . . Heaviest Build 20 | 10 17 15 19 20 18 Greatest Support 30 | 20 20 20 30 30 30 Greatest Overweight (x) 3 | 3 . . . 1 1 Average Overweight (x) . | . . . . . . Largest Inventory Capacity 8 | 8 8 5 5 5 5 Average Capacity 5 | 7 6 5 5 5 5 Most Carried 5 | 1 5 5 5 4 5 Average Carried 3 | . 3 4 4 2 3 Final Capacity 8 | 8 5 5 5 5 5 Final Carried 5 | 1 5 5 4 3 4 Scrap Suit Usage (%) 72 | . . 81 100 97 100 Parts Cannibalized 14 | . . . 7 7 . Class Distribution -------------------- 52% | Scavenger-Mutant 42% | Mutant 4% | Scrapper Dominant Class ---------------- Mutant | -10/Materials Scrapper | -10/Mines Mutant | -9/Materials Scavenger-Mutant | -9/Mines Scavenger-Mutant | -9/Exiles Resources | -11 -10 -10 -9 -9 -9 ----------- Run | Yrd Mat Min Mat Min Exi Matter Collected 1196 | 210 261 42 441 240 2 Remotely . | . . . . . . Salvage Created 1176 | . 298 30 482 366 . Parts 93 | . 33 3 38 19 . Haulers Intercepted . | . . . . . . Recyclers Shooed 1 | . 1 . . . . Parts Field Recycled . | . . . . . . Retrieved Matter . | . . . . . . Parts Self-Destructed . | . . . . . . Prevented . | . . . . . . Parts Restored . | . . . . . . Kills | -11 -10 -10 -9 -9 -9 ------- Run | Yrd Mat Min Mat Min Exi Combat Hostiles Destroyed 36 | . 12 3 11 10 . Guns 16 | . . . 10 6 . Cannons 20 | . 12 3 1 4 . Classes Destroyed 7 | . 4 . 2 1 . Tunneler 1 | . . . 1 . . Recycler 1 | . 1 . . . . Watcher 5 | . 3 . 2 . . Swarmer 14 | . 8 3 3 . . Grunt 17 | . 4 . 4 9 . Brawler 1 | . . . . 1 . Sentry 4 | . . . 4 . . Best Kill Streak 5 | . 4 3 4 5 . Combat Bots Only 5 | . 3 3 4 5 . Max Kills in Single Turn 1 | . 1 1 1 1 . Gunslinging . | . . . . . . Exploded . | . . . . . . Melee . | . . . . . . Uniques/NPCs Destroyed . | . . . . . . Combat | -11 -10 -10 -9 -9 -9 -------- Run | Yrd Mat Min Mat Min Exi Hostile Shots Fired 231 | . 37 9 56 72 57 Missed 74 | . 12 3 20 24 15 Hits 157 | . 25 6 36 48 42 Melee 8 | . . . . 1 7 Projectile 149 | . 25 6 36 47 35 Critical Strikes 1 | . . . . . 1 Part Disruptions 1 | . . . . . 1 Damage Taken 2183 | . 202 48 415 615 903 Core 452 | . 49 . 49 112 242 Absorbed by Shields . | . . . . . . Regen/Repaired (Parts) 121 | . . . 59 62 . Core Remaining (%) 90 | 100 . 80 . . . Volleys Fired 163 | . 34 4 38 34 53 Largest 2 | . 2 2 2 2 2 Hottest 73 | . 66 66 66 73 73 Shots Fired 269 | . 66 8 76 65 54 Gun 154 | . . . 70 39 45 Cannon 113 | . 64 8 6 26 9 Launcher . | . . . . . . Special 2 | . 2 . . . . Kinetic 204 | . 64 8 76 47 9 Thermal 65 | . 2 . . 18 45 Explosive . | . . . . . . Electromagnetic . | . . . . . . Robot Hit Streak 8 | . 3 3 8 7 . Robot Miss Streak 7 | . 7 3 3 4 . Penetration Max . | . . . . . . Secondary Targets 2 | . . . 2 . . Max Gunslinging Chain 1 | . . . 1 . . Shots Hit Robots 117 | . 24 3 45 45 . Core Hits 58 | . 16 3 19 19 1 Critical Kills . | . . . . . . Critical Parts Destroyed 1 | . . . 1 . . Critical Strikes 6 | . 2 1 1 2 . Destroy 1 | . . . 1 . . Blast 5 | . 2 1 . 2 . Melee Attacks . | . . . . . . Impact . | . . . . . . Slashing . | . . . . . . Piercing . | . . . . . . Sneak Attacks . | . . . . . . Combat Hostiles . | . . . . . . Follow-up Attacks . | . . . . . . Damage Inflicted 2121 | . 506 83 738 778 16 Guns 1031 | . . . 643 388 . Cannons 996 | . 483 83 81 349 . Explosions . | . . . . . . Melee . | . . . . . . Ramming 94 | . 23 . 14 41 16 Kinetic 1853 | . 483 83 724 563 . Thermal 174 | . . . . 174 . Explosive . | . . . . . . Electromagnetic . | . . . . . . Impact . | . . . . . . Slashing . | . . . . . . Piercing . | . . . . . . Highest Corruption 1 | . . . . . 1 Average Corruption 1 | . . . . . 1 Corruption Purged . | . . . . . . Corruption Blocked . | . . . . . . Overload Shots . | . . . . . . Overflow Damage 13 | . 13 . . . . Projectiles 13 | . 13 . . . . Explosions . | . . . . . . Melee . | . . . . . . Knockbacks 6 | . 2 1 . 3 . Impact . | . . . . . . Kinetic 6 | . 2 1 . 3 . Secondary . | . . . . . . Self-Inflicted Damage . | . . . . . . Shots . | . . . . . . Rammed . | . . . . . . Targets Rammed 17 | . 5 . 2 6 4 Kicked 17 | . 5 . 2 6 4 Crushed . | . . . . . . Highest Temperature 213 | . 102 24 5 213 18 Average Temperature 40 | . 24 12 3 75 6 Received Heat Transfer 606 | . 30 . 135 321 120 Effects 3 | . . . . 3 . Interference 3 | . . . . 3 . Siege Activations . | . . . . . . Martial Activations . | . . . . . . Shielding Activations . | . . . . . . Robots Disrupted . | . . . . . . Combat Hostiles . | . . . . . . Robots Corrupted . | . . . . . . Combat Hostiles . | . . . . . . Parts Fried . | . . . . . . Impact Corruptions . | . . . . . . Robots Melted . | . . . . . . Combat Hostiles . | . . . . . . Parts Melted . | . . . . . . Heat Transferred 400 | . . . . 400 . Parts Sabotaged . | . . . . . . Parts Stolen . | . . . . . . Parts Stripped . | . . . . . . Power Chain Reactions . | . . . . . . Alert | -11 -10 -10 -9 -9 -9 ------- Run | Yrd Mat Min Mat Min Exi Maximum Alert Level . | . . . . . . Low Security (%) 100 | 100 100 100 100 100 . Level 1 . | . . . . . . Level 2 . | . . . . . . Level 3 . | . . . . . . Level 4 . | . . . . . . Level 5 . | . . . . . . High Security . | . . . . . . Max Security . | . . . . . . Peak Influence 136 | . 90 60 128 136 . Initial 35 | . . 25 11 35 . Average 38 | . 31 19 76 34 . Influence Increases 1070 | . 435 70 304 261 . Destroy 0b10 Robot/C 720 | . 240 60 220 200 . Destroy 0b10 Robot/NC 35 | . 20 . 15 . . Destroy Leader 160 | . 56 10 64 30 . Successful Hack 14 | . 9 . 5 . . Disable Machine 75 | . 75 . . . . Destroy Structure 6 | . 5 . . 1 . Lose Combat Pursuer 60 | . 30 . . 30 . Influence Decreases 1070 | . 369 106 243 352 . Entered New Map 116 | . . 41 19 56 . Time Decay 894 | . 369 65 214 246 . Lost Part 60 | . . . 10 50 . Squads Dispatched 3 | . 2 . 1 . . Investigation 1 | . 1 . . . . Extermination . | . . . . . . Reinforcement 2 | . 1 . 1 . . Assault . | . . . . . . Garrison . | . . . . . . Intercept . | . . . . . . Searches Triggered . | . . . . . . Construction Impeded . | . . . . . . Haulers Reinforced . | . . . . . . Active Scanning Responses . | . . . . . . Cargo Convoy Interrupts . | . . . . . . Stealth | -11 -10 -10 -9 -9 -9 --------- Run | Yrd Mat Min Mat Min Exi Distress Signals 6 | . 2 . 4 . . Communications Jammed . | . . . . . . Distress Signals . | . . . . . . Times Spotted 72 | . 17 3 21 13 18 Peak Tracking Total 16 | . 3 3 5 5 16 Tactical Retreats 4 | . 2 . . 1 1 Traps | -11 -10 -10 -9 -9 -9 ------- Run | Yrd Mat Min Mat Min Exi Traps Triggered 3 | . 3 . . . . Indirectly . | . . . . . . Trap Hack Attempts . | . . . . . . Triggered . | . . . . . . Disarmed . | . . . . . . Reprogrammed . | . . . . . . Reused . | . . . . . . Traps Extracted . | . . . . . . Installed . | . . . . . . Triggered . | . . . . . . Machines | -11 -10 -10 -9 -9 -9 ---------- Run | Yrd Mat Min Mat Min Exi Machines Disabled 7 | . 5 . . . 2 Max in Single Turn 1 | . 1 . . . 1 Machines Repaired . | . . . . . . Machines Dismantled 4 | . 4 . . . . Machines Sabotaged . | . . . . . . Overloaded Fab Kills . | . . . . . . Hacking | -11 -10 -10 -9 -9 -9 --------- Run | Yrd Mat Min Mat Min Exi Machines Accessed 15 | . 7 . 3 . 5 Terminals 7 | . 6 . 1 . . Fabricators . | . . . . . . Repair Stations 1 | . . . 1 . . Recycling Units 2 | . 1 . 1 . . Scanalyzers . | . . . . . . Garrison Access . | . . . . . . Total Hacks 67 | . 12 . 5 . 50 Successful 61 | . 8 . 3 . 50 Failed 6 | . 4 . 2 . . Catastrophic 1 | . 1 . . . . Database Lockouts . | . . . . . . Manual 5 | . 1 . . . 4 Terminals 13 | . 11 . 2 . . Fabricators . | . . . . . . Repair Stations 1 | . . . 1 . . Recycling Units 3 | . 1 . 2 . . Scanalyzers . | . . . . . . Garrison Access . | . . . . . . Terminal Hacks 59 | . 7 . 2 . 50 Record 51 | . 2 . . . 49 Robot Analysis 1 | . . . 1 . . Emergency Access Points 1 | . 1 . . . . Locate Traps 1 | . 1 . . . . Maintenance Status 1 | . 1 . . . . Zone Layout 3 | . 2 . 1 . . Proto ID Catalog 1 | . . . . . 1 Fabricator Hacks . | . . . . . . Repair Station Hacks . | . . . . . . Recycling Unit Hacks 2 | . 1 . 1 . . Report Inventory 2 | . 1 . 1 . . Scanalyzer . | . . . . . . Garrison Access Hacks . | . . . . . . Unauthorized Hacks . | . . . . . . Terminals . | . . . . . . Fabricators . | . . . . . . Repair Stations . | . . . . . . Recycling Units . | . . . . . . Scanalyzers . | . . . . . . Garrison Access . | . . . . . . Data Cores Recovered . | . . . . . . Used . | . . . . . . Hacking Detections 5 | . 4 . 1 . . Full Trace Events . | . . . . . . Feedback Events . | . . . . . . Feedback Blocked . | . . . . . . Robot Schematics Acquired . | . . . . . . Robots Built . | . . . . . . Authchips . | . . . . . . Time . | . . . . . . Total Robot Build Rating . | . . . . . . Part Schematics Acquired . | . . . . . . Parts Built . | . . . . . . Authchips . | . . . . . . Time . | . . . . . . Total Part Build Rating . | . . . . . . Part Studies Acquired . | . . . . . . Parts Repaired . | . . . . . . Time . | . . . . . . Parts Recycled . | . . . . . . Recycled Matter . | . . . . . . Retrieved Matter . | . . . . . . Retrieved Components . | . . . . . . Parts Scanalyzed . | . . . . . . Part Schematics Acquired . | . . . . . . Parts Damaged . | . . . . . . Bothacking | -11 -10 -10 -9 -9 -9 ------------ Run | Yrd Mat Min Mat Min Exi Used RIF Installer . | . . . . . . Robots Hacked . | . . . . . . Non-combat . | . . . . . . Combat . | . . . . . . Robot Hacks Applied . | . . . . . . Relay Couplers Released . | . . . . . . Fabnet Peak Effective % . | . . . . . . Robots Rewired . | . . . . . . Allies Hacked . | . . . . . . Hacks Repelled . | . . . . . . Allies | -11 -10 -10 -9 -9 -9 -------- Run | Yrd Mat Min Mat Min Exi Total Allies . | . . . . . . Largest Group . | . . . . . . Highest-Rated Group . | . . . . . . Highest-Rated Ally . | . . . . . . Total Orders 6 | . . . . . 6 STAY 1 | . . . . . 1 ROAM 1 | . . . . . 1 EXPLORE 3 | . . . . . 3 RETURN 1 | . . . . . 1 Ally Attacks . | . . . . . . Total Damage . | . . . . . . Kills . | . . . . . . Allies Corrupted . | . . . . . . Allies Melted . | . . . . . . Intel | -11 -10 -10 -9 -9 -9 ------- Run | Yrd Mat Min Mat Min Exi Active Infowar (turns) 3777 | . 951 40 455 849 1482 Sensors 1464 | . 951 40 455 18 . Terrain 2313 | . . . . 831 1482 Robot Analysis Total 1 | . . . 1 . . Derelict Logs Recovered 2 | . . 1 . 1 . Drone Launches 1 | . . . . . 1 Drone Recoveries 1 | . . . . . 1 Exploration | -11 -10 -10 -9 -9 -9 ------------- Run | Yrd Mat Min Mat Min Exi Turns Passed 4264 | 58 1069 219 456 902 1560 Spaces Moved 2547 | 37 586 167 258 606 893 Core 13 | 11 . . . . 2 Treads . | . . . . . . Legs 2534 | 26 586 167 258 606 891 Wheels . | . . . . . . Hover . | . . . . . . Flight . | . . . . . . Fastest Speed 50 | 50 120 120 120 120 100 Average Speed 120 | 127 120 120 120 120 119 Slowest Speed 200 | 200 120 120 120 190 120 Overloaded Moves . | . . . . . . Propulsion Burnouts . | . . . . . . Robots Hopped . | . . . . . . Potential Cave-ins . | . . . . . . Cave-ins Triggered . | . . . . . . Exploration Rate (%) 57 | 4 92 36 21 97 95 Regions Visited 5 Branch Regions 3 Pre-discovered Areas 2 | . . 1 . . 1 Known Exits Taken . | . . . . . . Unknown Exits Taken 5 | 1 1 1 1 1 . Scrap Searched 2 | . . . . 2 . Spaces Dug . | . . . . . . Terrain Destroyed 5 | . 4 . . 1 . Melee . | . . . . . . Projectile 5 | . 4 . . 1 . AOE . | . . . . . . Terrain Rammed . | . . . . . . Walls Destroyed . | . . . . . . Machines Disabled . | . . . . . . Actions | -11 -10 -10 -9 -9 -9 --------- Run | Yrd Mat Min Mat Min Exi Total 3397 | 45 803 178 331 710 1330 Wait 558 | 2 110 3 20 57 366 Move 2542 | 36 585 166 257 605 893 Hop . | . . . . . . Pick Up 6 | 1 2 1 1 . 1 Fast Attach 23 | 6 9 1 2 2 3 Attach 10 | . 4 . 2 3 1 Detach 15 | . 7 . 3 . 5 Swap 7 | . 3 . 1 3 . Drop 16 | . 4 3 5 . 4 Fire 163 | . 34 4 38 34 53 Melee . | . . . . . . Ram . | . . . . . . Kick 17 | . 5 . 2 6 4 Crush . | . . . . . . Escape Stasis . | . . . . . . Rewire . | . . . . . . Trap . | . . . . . . Miscellaneous 40 | . 40 . . . . Route ------- -11/Scrapyard -10/Materials (discovered 5 exits: *Mat x3 / [*Min x2]) -10/Mines (discovered 2 exits: *Mat / [*Sub]) -9/Materials -9/Mines (discovered 3 exits: [*Mat x2] / *Exi) -9/Exiles (discovered 2 exits: [*Min x2]) History --------- Turn | Location | Event 26 | -11/Scrapyard | Discovered new exit (range 14) 59 | -11/Scrapyard | Entered Materials 87 | -10/Materials | Discovered new exit (range 7) 234 | -10/Materials | Discovered new exit (range 3) 313 | -10/Materials | Build established: Mutant 407 | -10/Materials | Discovered new exit (range 15) 455 | -10/Materials | Discovered new exit (range 21) 683 | -10/Materials | Discovered new exit (range 4) 1128 | -10/Materials | Entered Mines 1145 | -10/Mines | Learned location of Zion (-6) 1161 | -10/Mines | Met a Derelict bent on vengeance 1166 | -10/Mines | Found a Scrap Suit stashed away for nefarious purposes 1169 | -10/Mines | Found Scrap Suit 1278 | -10/Mines | Discovered new exit (range 14) 1298 | -10/Mines | Assembled infested the area 1303 | -10/Mines | Assisted by a Guerilla fighting off Assembled 1347 | -10/Mines | Discovered new exit (range 10) 1347 | -10/Mines | Entered Materials 1347 | -9/Materials | Evolved 2 slots: Propulsion x1, Utility x1 1671 | -9/Materials | Discovered new exit (range 16) 1803 | -9/Materials | Entered Mines 2068 | -9/Mines | Discovered new exit (range 9) 2172 | -9/Mines | Deemed a non-threat by the Exiles lab entrance 2172 | -9/Mines | Discovered new exit (range 5) 2253 | -9/Mines | Found a hidden stash of uninstalled traps 2289 | -9/Mines | Discovered new exit (range 6) 2330 | -9/Mines | Build established: Scavenger-Mutant 2705 | -9/Mines | Entered Exiles 2828 | -9/Exiles | Discovered new exit (range 14) 2866 | -9/Exiles | Met 8R-AWN 2892 | -9/Exiles | Met EX-HEX 2967 | -9/Exiles | Met EX-DEC 3017 | -9/Exiles | Visited The Gauntlet 3350 | -9/Exiles | Discovered new exit (range 14) 3433 | -9/Exiles | Met EX-BIN 3453 | -9/Exiles | Aligned with FarCom system 3454 | -9/Exiles | Given EX-Vault access code 3531 | -9/Exiles | Opened EX-Vault 3538 | -9/Exiles | Found Prototype Device 3538 | -9/Exiles | Identified PSU Rigger 3546 | -9/Exiles | Found Prototype Special Weapon 3546 | -9/Exiles | Identified Field Lobotomy Kit 3549 | -9/Exiles | Found Prototype Device 3549 | -9/Exiles | Identified Supersonic Drone Bay 3680 | -9/Exiles | Warned to stay clear of 0b10 Research branches 4224 | -9/Exiles | Attacked by the Exiles 4250 | -9/Exiles | Core integrity fell below 50% 4264 | -9/Exiles | Core integrity fell below 20% 4265 | -9/Exiles | Destroyed by DAS Turret with DAS Cannon Last Messages --------------- 04224_ EXILES: Hostile robot within lab perimeter. Defensive protocols time, folks! 04241_ J5-HVA destroyed. 04246_ EX-BIN: "I just want to science!" 04247_ Imp. Light Cannon destroyed. 04250_ Kicked as-21925 out of the way. 04251_ as-19361 destroyed. 04251_ Imp. Terrain Scanner destroyed. 04251_ Kicked as-30787 out of the way. 04253_ Kicked as-32590. 04253_ as-30787 destroyed. 04254_ Acquired 2 matter. 04254_ Kicked as-32590. 04257_ Aluminum Leg destroyed. 04259_ Hvy. Ion Engine destroyed. 04259_ Sml. Laser destroyed. 04259_ Aluminum Leg destroyed. 04260_ Knocked back. 04263_ Aluminum Leg destroyed. 04265_ Scrap Suit destroyed. Map ----- +----------------------------------------------------+ | #"" ######???### ###?######"" #???#?????? | | ##" """#####X# #"###""""""" ##???#????? | | ?#" """""" " "" ###??##### | | ?#"# "" """ " #####"""" | | ?#### " " " "" | | ????### "" | | ??????### " | | ???#????## | | ???#??#??## | | ???#?#??#?##" | | ???#??#????#""" """""" | | ?#?????#??##" ######""" | | ???????##?#"" ""#####?#####""" | | ???#?????##""" """##???????#?##""" | | ?????????#""" z """##?###???????#"""" | | ????????##""" ""#?#??????#??##"" | | ????#????#"" ########??####"""" | | ??#??????#""" t ##aaa####""" | | ?????????#"" """" | | ?????????##"" | | ??#??????##"""" | | ?????????### z " | | ???????????#" z " "" " | | ????????#??#"""" z % ""## ##""" " " "" | | ???????????#"" ""#### ######""" """ | | ???????????#" @""""###?# #????###""""# | | ????????#??#""" a """#??## ####??####### | | ?#?????????## a ""##?##! "!#????????? | | ????????????#"" """##??##" !#????????? | | ????????????##""" a %##????#" "#??????#?? | | ??????#???#?###"""" a ##?????#!!""!"##???????? | | #??????#?#?#??### a ##??#?#########????????? | | ???#???#?????#??##### ##?????##???????????????? | | ?##?????????????##??## #?#?????????#???????????? | | ????????????#????#??## #??##???????????????????? | | ????????#????##????#?#z #???????##???#??????????? | | ?#???#????#??#?#?#???# % #????#????##????????????? | | ??###?#????####??????# z#?#?#?#?????#???????????? | | ?""""""#??#""""""????# #?????##????????????????? | | """""""#??#"""""""#?## #?###?##????????????????? | | """"" "#?##" """"##?# =#???????????#???????????? | | """ """#?##"" """#??# =%#????????????#??#???????? | | "" ""????"" ""???# =#???#??#???????#????????? | | ##"""########"""###### #########???????????????? | | "" """""""" """""" """""""#??"""#??????????? | | " """"""" "#"" ""#??????????? | | " ""#??????????? | | " " "#??????????? | | " """#??????????? | | "" #"" ""#??????????? | +----------------------------------------------------+ Best States ------------- Heat Dissipation 28 Energy Generation 14 Energy Capacity 280 Matter Stores 300 Matter Capacity 300 Sight Range 16 Robot Scan Range 14 Terrain Scan Range 16 Terrain Scan Density 10 Armor Coverage 150 Evasion (%) 55 Item Schematics ----------------- None Robot Schematics ------------------ None Fabricated ------------ Nothing Repaired ---------- Nothing Studied --------- None Alien Tech Used ----------------- None Achievements -------------- Ghost 'Em Sixth Sense Challenges ------------ None Game ------ Seed CombatConstructCape Manual? 0 Play Time 00:59:28 Cumulative 23.8 hours Start 2026.02.22 @ 12:22:57 End 2026.02.22 @ 16:05:38 Sessions 3 Manual Loads 0 Difficulty Rogue Special Mode None Game No. 21 Rogue 16 Adventurer 5 Explorer 0 Win Type - Total 0 Types 0/0/0/0/0/0/0/0/0/0 Lore% 12 Gallery% 21 Achievement% 17 Wizard Run 0 Options --------- Layout 0 ASCII 0 Keyboard 1 Movement Numpad Keybinds 0 Fullscreen 1 Font 24/Smallcaps Map View 76x50 Zoom Use 0% Tactical HUD 1 Map Filters NONE Filters NONE Steam 1 RUN: 859be4fe-0295-460e-a979-e78b0c1a07dd